Cogmind - Beta 10.2 @@@ ROGUE MODE // 2021.10.24 @ 15:29:19 Player: Giant Eel Result: Destroyed by G-47 Trooper with Particle Gun Performance ------------- Evolutions (2) 1000 Regions Visited (5) 1000 Robots Destroyed (38) 190 Value Destroyed (1284) 1284 Prototype IDs (1) 20 Alien Tech Used (0) 0 Bonus (0) 0 TOTAL SCORE: 3494 Bonus ------- None Cogmind --------- Core Integrity 0/550 Matter 300/300 Energy 100/100 System Corruption 0% Temperature Cool (18) Movement Walking (180) Ox2 Location -8/Materials Parts ------- > --- POWER (1) -------- (None) > --- PROPULSION (4) --- Aluminum Leg > --- UTILITY (4) ------ Medium Storage Unit Large Storage Unit Enhanced Optical Array Enhanced Optical Array > --- WEAPON (2) ------- (None) > --- INVENTORY (14) --- Light Treads Light Treads Light Treads Aluminum Leg Targeting Computer Light Armor Plating Heavy EM Shotgun Heavy EM Shotgun Spread Laser Pulse Rifle Light EM Pulse Cannon Advanced Beam Cannon Mini Grenade Launcher Peak State ------------ > --- POWER ------------ Light Nuclear Core > --- PROPULSION ------- Light Treads Light Treads Carbon-fiber Leg Carbon-fiber Leg > --- UTILITY ---------- Medium Storage Unit Large Storage Unit Enhanced Optical Array Enhanced Optical Array > --- WEAPON ----------- Improved Assault Rifle Gauss Rifle > --- INVENTORY -------- Light Treads Heavy EM Shotgun Heavy EM Shotgun Heavy EM Shotgun Improved Assault Rifle [Rating: 29] Favorites ----------- Power Ion Engine Engine Ion Engine Power Core Light Nuclear Core Propulsion Aluminum Leg Treads Light Treads Leg Aluminum Leg Hover Unit Improved Hover Unit Utility Large Storage Unit Storage Large Storage Unit Processor Enhanced Optical Array Weapon Assault Rifle Energy Gun Beam Rifle Ballistic Gun Assault Rifle Build | -11 -10 -10 -9 -9 -8 ------- Run | Scr Mat Min Mat Sto Mat Slots Evolved 4 | . . . 2 . 2 Power . | . . . . . . Propulsion 2 | . . . 1 . 1 Utility 2 | . . . 1 . 1 Weapon . | . . . . . . Parts Attached 51 | 6 2 . . 13 30 Power 6 | 1 . . . 2 3 Engine 4 | 1 . . . 2 1 Core 2 | . . . . . 2 Reactor . | . . . . . . Propulsion 23 | 2 . . . 4 17 Treads 3 | . . . . . 3 Leg 18 | 2 . . . 4 12 Wheel . | . . . . . . Hover 2 | . . . . . 2 Flight . | . . . . . . Utility 6 | 1 2 . . 1 2 Device . | . . . . . . Storage 4 | 1 2 . . 1 . Processor 2 | . . . . . 2 Hackware . | . . . . . . Protection . | . . . . . . Artifact . | . . . . . . Weapon 16 | 2 . . . 6 8 Energy Gun 2 | . . . . 1 1 Energy Cannon . | . . . . . . Ballistic Gun 14 | 2 . . . 5 7 Ballistic Cannon . | . . . . . . Launcher . | . . . . . . Special Weapon . | . . . . . . Impact Weapon . | . . . . . . Slashing Weapon . | . . . . . . Piercing Weapon . | . . . . . . Special Melee Weapon . | . . . . . . Unidentified Prototypes 1 | . . . . . 1 Parts Lost 36 | . . 2 . 8 26 Power 6 | . . 1 . 2 3 Propulsion 18 | . . . . 4 14 Utility 1 | . . . . . 1 Weapon 11 | . . 1 . 2 8 Highest Loss Streak 8 | . . 2 . 3 8 Average Slot Usage (%) 84 | . 91 96 55 89 77 Engine 6 | . 14 12 . 8 . Core 1 | . . . . . 4 Treads 3 | . . . . . 7 Leg 24 | . 28 28 22 28 19 Storage 24 | . 20 28 22 31 20 Processor 4 | . . . . . 9 Ballistic Gun 18 | . 28 26 11 19 14 Naked Turns . | . . . . . . Heaviest Build 39 | 13 33 33 26 39 36 Greatest Support 48 | 20 20 20 20 30 48 Greatest Overweight (x) 7 | 3 1 1 1 3 7 Average Overweight (x) . | . . 1 1 1 1 Largest Inventory Capacity 16 | 6 14 14 14 16 16 Average Capacity 13 | 5 9 14 14 15 14 Most Carried 14 | 6 8 11 11 13 14 Average Carried 7 | 3 6 9 11 9 6 Final Capacity 16 | 6 14 14 14 16 14 Final Carried 13 | 6 8 11 11 11 13 Class Distribution -------------------- 61% | Mutant 38% | Scavenger-Mutant Dominant Class ---------------- Mutant | -10/Materials Mutant | -10/Mines Mutant | -9/Materials Scavenger-Mutant | -9/Storage Scavenger-Mutant | -8/Materials Resources | -11 -10 -10 -9 -9 -8 ----------- Run | Scr Mat Min Mat Sto Mat Matter Collected 1491 | 181 164 130 . 317 699 Remotely . | . . . . . . Salvage Created 1511 | . 164 130 . 317 900 Parts 86 | . 11 8 . 18 49 Haulers Intercepted 1 | . . . . . 1 Recyclers Shooed 2 | . 1 . . . 1 Parts Field Recycled . | . . . . . . Retrieved Matter . | . . . . . . Parts Self-Destructed . | . . . . . . Prevented . | . . . . . . Kills | -11 -10 -10 -9 -9 -8 ------- Run | Scr Mat Min Mat Sto Mat Combat Hostiles Destroyed 28 | . 4 5 . 6 13 Guns 28 | . 4 5 . 6 13 Classes Destroyed 10 | . 2 1 . 1 6 Worker 2 | . . . . . 2 Builder 1 | . . . . . 1 Tunneler 1 | . . . . . 1 Hauler 1 | . . . . . 1 Watcher 5 | . 1 . . 1 3 Swarmer 3 | . . 3 . . . Grunt 14 | . 4 2 . 3 5 Duelist 1 | . . . . . 1 Sentry 7 | . . . . 3 4 Hunter 3 | . . . . . 3 Best Kill Streak 7 | . 1 3 . 2 7 Combat Bots Only 4 | . 1 3 . 2 4 Max Kills in Single Turn 2 | . 1 2 . 1 1 Gunslinging 1 | . . 1 . . . Exploded . | . . . . . . Melee . | . . . . . . Uniques/NPCs Destroyed . | . . . . . . Combat | -11 -10 -10 -9 -9 -8 -------- Run | Scr Mat Min Mat Sto Mat Damage Taken 4528 | . 255 177 . 1198 2898 Core 833 | . 43 44 . 191 555 Absorbed by Shields . | . . . . . . Core Remaining (%) 72 | 100 . 65 . 52 . Volleys Fired 177 | . 25 15 . 36 101 Largest 2 | . 2 2 . 2 2 Hottest 88 | . 40 40 . 88 79 Shots Fired 314 | . 50 27 . 69 168 Gun 314 | . 50 27 . 69 168 Cannon . | . . . . . . Launcher . | . . . . . . Special . | . . . . . . Kinetic 302 | . 50 27 . 66 159 Thermal 12 | . . . . 3 9 Explosive . | . . . . . . Electromagnetic . | . . . . . . Robot Hit Streak 23 | . 6 6 . 15 23 Robot Miss Streak 4 | . 3 3 . 4 4 Penetration Max 1 | . . . . . 1 Secondary Targets 3 | . . 1 . . 2 Max Gunslinging Chain 1 | . . 1 . . 1 Shots Hit Robots 207 | . 28 18 . 42 119 Core Hits 73 | . 10 8 . 12 43 Critical Hits 3 | . . . . . 3 Critical Kills 1 | . . . . . 1 Critical Parts Destroyed 2 | . . . . . 2 Melee Attacks . | . . . . . . Impact . | . . . . . . Slashing . | . . . . . . Piercing . | . . . . . . Sneak Attacks . | . . . . . . Combat Hostiles . | . . . . . . Follow-up Attacks . | . . . . . . Damage Inflicted 2949 | . 369 229 . 530 1821 Guns 2836 | . 369 229 . 530 1708 Cannons . | . . . . . . Explosions 103 | . . . . . 103 Melee . | . . . . . . Ramming 10 | . . . . . 10 Kinetic 2713 | . 369 229 . 480 1635 Thermal 123 | . . . . 50 73 Explosive 103 | . . . . . 103 Electromagnetic . | . . . . . . Impact . | . . . . . . Slashing . | . . . . . . Piercing . | . . . . . . Highest Corruption 4 | . . . . 4 . Average Corruption 3 | . . . . 3 . Corruption Purged . | . . . . . . Effects 15 | . . . . 15 . Message Errors 2 | . . . . 2 . Matter Fused 1 | . . . . 1 . Heat Flow Errors 2 | . . . . 2 . Energy Discharges 2 | . . . . 2 . Parts Rejected 1 | . . . . 1 . Data Loss (minor) 1 | . . . . 1 . Targeting Errors 6 | . . . . 6 . Overload Shots . | . . . . . . Overflow Damage 51 | . . . . . 51 Projectiles . | . . . . . . Explosions 51 | . . . . . 51 Melee . | . . . . . . Knockbacks . | . . . . . . Impact . | . . . . . . Kinetic . | . . . . . . Secondary . | . . . . . . Self-Inflicted Damage 179 | . . . . . 179 Shots 2 | . . . . . 2 Rammed 2 | . . . . . 2 Targets Rammed 3 | . . . . . 3 Kicked 1 | . . . . . 1 Crushed . | . . . . . . Highest Temperature 151 | . . 2 . 151 11 Average Temperature 41 | . . 2 . 57 2 Received Heat Transfer 1212 | . 138 54 . 264 756 Siege Activations . | . . . . . . Robots Corrupted . | . . . . . . Combat Hostiles . | . . . . . . Parts Fried . | . . . . . . Impact Corruptions . | . . . . . . Robots Melted . | . . . . . . Combat Hostiles . | . . . . . . Parts Melted . | . . . . . . Heat Transferred 296 | . . . . 111 185 Parts Sabotaged . | . . . . . . Parts Stolen . | . . . . . . Parts Stripped . | . . . . . . Power Chain Reactions . | . . . . . . Missiles Intercepted . | . . . . . . Alert | -11 -10 -10 -9 -9 -8 ------- Run | Scr Mat Min Mat Sto Mat Peak Influence 314 | . 157 176 68 205 314 Initial 68 | . . 61 68 28 5 Average 89 | . 72 99 68 98 93 Maximum Alert Level 1 | . . . . 1 1 Low Security (%) 86 | 100 100 100 100 91 72 Level 1 13 | . . . . 8 27 Level 2 . | . . . . . . Level 3 . | . . . . . . Level 4 . | . . . . . . Level 5 . | . . . . . . High Security . | . . . . . . Max Security . | . . . . . . Squads Dispatched 6 | . 3 . . . 3 Investigation 2 | . 1 . . . 1 Extermination . | . . . . . . Reinforcement 4 | . 2 . . . 2 Assault . | . . . . . . Garrison . | . . . . . . Intercept . | . . . . . . Construction Impeded . | . . . . . . Haulers Reinforced . | . . . . . . Stealth | -11 -10 -10 -9 -9 -8 --------- Run | Scr Mat Min Mat Sto Mat Distress Signals 4 | . 2 . . . 2 Communications Jammed . | . . . . . . Distress Signals . | . . . . . . Times Spotted 62 | . 9 5 . 14 34 Peak Tracking Total 6 | . 3 3 . 3 6 Tactical Retreats 9 | . 2 . . 2 5 Traps | -11 -10 -10 -9 -9 -8 ------- Run | Scr Mat Min Mat Sto Mat Traps Triggered 5 | . 1 . . 3 1 Indirectly . | . . . . . . Trap Hack Attempts . | . . . . . . Triggered . | . . . . . . Disarmed . | . . . . . . Reprogrammed . | . . . . . . Reused . | . . . . . . Traps Extracted . | . . . . . . Installed . | . . . . . . Triggered . | . . . . . . Machines | -11 -10 -10 -9 -9 -8 ---------- Run | Scr Mat Min Mat Sto Mat Machines Disabled 5 | . . . . . 5 Max in Single Turn 2 | . . . . . 2 Machines Sabotaged . | . . . . . . Garrisons Compromised . | . . . . . . Overloaded Fab Kills . | . . . . . . Fab Network Shutdowns . | . . . . . . Hacking | -11 -10 -10 -9 -9 -8 --------- Run | Scr Mat Min Mat Sto Mat Machines Accessed 3 | . . . . 1 2 Terminals 3 | . . . . 1 2 Fabricators . | . . . . . . Repair Stations . | . . . . . . Recycling Units . | . . . . . . Scanalyzers . | . . . . . . Garrison Access . | . . . . . . Total Hacks 5 | . . . . 2 3 Successful 1 | . . . . . 1 Failed 4 | . . . . 2 2 Catastrophic 3 | . . . . 2 1 Database Lockouts . | . . . . . . Manual 1 | . . . . 1 . Terminals 5 | . . . . 2 3 Fabricators . | . . . . . . Repair Stations . | . . . . . . Recycling Units . | . . . . . . Scanalyzers . | . . . . . . Garrison Access . | . . . . . . Terminal Hacks 1 | . . . . . 1 Record 1 | . . . . . 1 Fabricator Hacks . | . . . . . . Repair Station Hacks . | . . . . . . Recycling Unit Hacks . | . . . . . . Scanalyzer . | . . . . . . Garrison Access Hacks . | . . . . . . Unauthorized Hacks . | . . . . . . Terminals . | . . . . . . Fabricators . | . . . . . . Repair Stations . | . . . . . . Recycling Units . | . . . . . . Scanalyzers . | . . . . . . Garrison Access . | . . . . . . Data Cores Recovered . | . . . . . . Used . | . . . . . . Hacking Detections 2 | . . . . . 2 Full Trace Events 1 | . . . . . 1 Feedback Events . | . . . . . . Feedback Blocked . | . . . . . . Robot Schematics Acquired . | . . . . . . Robots Built . | . . . . . . Matter . | . . . . . . Time . | . . . . . . Total Robot Build Rating . | . . . . . . Part Schematics Acquired . | . . . . . . Parts Built . | . . . . . . Matter . | . . . . . . Time . | . . . . . . Total Part Build Rating . | . . . . . . Parts Repaired . | . . . . . . Time . | . . . . . . Parts Recycled . | . . . . . . Recycled Matter . | . . . . . . Retrieved Matter . | . . . . . . Retrieved Components . | . . . . . . Parts Scanalyzed . | . . . . . . Part Schematics Acquired . | . . . . . . Parts Damaged . | . . . . . . Bothacking | -11 -10 -10 -9 -9 -8 ------------ Run | Scr Mat Min Mat Sto Mat Used RIF Installer . | . . . . . . Robots Hacked . | . . . . . . Non-combat . | . . . . . . Combat . | . . . . . . Robot Hacks Applied . | . . . . . . Relay Couplers Released . | . . . . . . Robots Rewired . | . . . . . . Allies Hacked . | . . . . . . Hacks Repelled . | . . . . . . Allies | -11 -10 -10 -9 -9 -8 -------- Run | Scr Mat Min Mat Sto Mat Total Allies . | . . . . . . Largest Group . | . . . . . . Highest-Rated Group . | . . . . . . Highest-Rated Ally . | . . . . . . Total Orders . | . . . . . . Ally Attacks . | . . . . . . Total Damage . | . . . . . . Kills . | . . . . . . Allies Corrupted . | . . . . . . Allies Melted . | . . . . . . Intel | -11 -10 -10 -9 -9 -8 ------- Run | Scr Mat Min Mat Sto Mat Robot Analysis Total . | . . . . . . Derelict Logs Recovered 1 | . . 1 . . . Drone Launches . | . . . . . . Drone Recoveries . | . . . . . . Exploration | -11 -10 -10 -9 -9 -8 ------------- Run | Scr Mat Min Mat Sto Mat Turns Passed 1979 | 73 261 230 27 538 850 Spaces Moved 877 | 57 120 123 19 255 303 Core 37 | 31 . . . . 6 Treads 5 | . . . . . 5 Legs 811 | 26 120 123 19 255 268 Wheels . | . . . . . . Hover 24 | . . . . . 24 Flight . | . . . . . . Fastest Speed 50 | 50 120 150 150 150 116 Average Speed 147 | 91 137 150 150 153 156 Slowest Speed 400 | 200 150 150 150 210 400 Overloaded Moves . | . . . . . . Propulsion Burnouts . | . . . . . . Robots Hopped . | . . . . . . Cave-ins Triggered . | . . . . . . Exploration Rate (%) 23 | 4 27 24 4 38 42 Regions Visited 5 Branch Regions 2 Pre-discovered Areas . | . . . . . . Known Exits Taken . | . . . . . . Unknown Exits Taken 5 | 1 1 1 1 1 . Scrap Searched . | . . . . . . Spaces Dug . | . . . . . . Terrain Destroyed 57 | . . . . . 57 Melee . | . . . . . . Projectile . | . . . . . . AOE 57 | . . . . . 57 Terrain Rammed . | . . . . . . Walls Destroyed . | . . . . . . Machines Disabled . | . . . . . . Actions | -11 -10 -10 -9 -9 -8 --------- Run | Scr Mat Min Mat Sto Mat Total 1254 | 79 170 142 18 332 513 Wait 75 | 1 12 2 . 18 42 Move 872 | 56 119 122 18 254 303 Hop . | . . . . . . Pick Up 65 | 14 7 3 . 11 30 Fast Attach . | . . . . . . Attach 49 | 6 2 . . 11 30 Detach 4 | . 1 . . . 3 Swap 2 | . . . . 2 . Drop 7 | 2 4 . . . 1 Fire 177 | . 25 15 . 36 101 Melee . | . . . . . . Ram . | . . . . . . Kick 3 | . . . . . 3 Crush . | . . . . . . Escape Stasis . | . . . . . . Rewire . | . . . . . . Trap . | . . . . . . Miscellaneous . | . . . . . . Route ------- -11/Scrapyard -10/Materials -10/Mines -9/Materials (discovered 3 exits: Min x2 / *Sto) -9/Storage -8/Materials History --------- Turn | Location | Event 18 | -11/Scrapyard | Discovered new exit (range 16) 74 | -11/Scrapyard | Entered Materials 305 | -10/Materials | Build established: Mutant 318 | -10/Materials | Discovered new exit (range 12) 335 | -10/Materials | Entered Mines 532 | -10/Mines | Discovered new exit (range 6) 565 | -10/Mines | Entered Materials 565 | -9/Materials | Evolved 2 slots: Propulsion x1, Utility x1 566 | -9/Materials | Identified exit to Mines 570 | -9/Materials | Discovered new exit (range 16) 592 | -9/Materials | Entered Storage 866 | -9/Storage | Lost 3 parts (1p1n1w) 1097 | -9/Storage | Discovered new exit (range 16) 1130 | -9/Storage | Entered Materials 1130 | -8/Materials | Evolved 2 slots: Propulsion x1, Utility x1 1154 | -8/Materials | Lost 3 parts (1p1n1w) 1360 | -8/Materials | Lost 6 parts (1p3n2w) 1402 | -8/Materials | Core integrity fell below 50% 1464 | -8/Materials | Lost 7 parts (1p4n1u1w) 1818 | -8/Materials | Core integrity fell below 20% 1980 | -8/Materials | Destroyed by G-47 Trooper with Particle Gun Last Messages --------------- 01957_ R-06 Scavenger inserts Lgt. Treads into recycling unit. 01960_ R-06 Scavenger collects Wheel. 01960_ R-06 Scavenger inserts Imp. Heat Sink into recycling unit. 01961_ U-05 Engineer lays Concrete. 01961_ Acquired Aluminum Leg. 01962_ U-05 Engineer lays Concrete. 01963_ Acquired 3 matter. 01963_ R-06 Scavenger inserts Heat Sink into recycling unit. 01964_ R-06 Scavenger collects Beam Rifle. 01965_ U-05 Engineer lays Concrete. 01968_ U-05 Engineer builds a Wall. 01973_ R-06 Scavenger collects Targeting Computer. 01974_ Aluminum Leg destroyed. 01974_ K-01 Serf collects debris. 01974_ U-05 Engineer builds a Wall. 01976_ Imp. Assault Rifle destroyed. 01977_ K-01 Serf collects debris. 01978_ U-05 Engineer lays Concrete. 01978_ R-06 Scavenger collects Lgt. Ion Engine. 01979_ U-05 Engineer lays Concrete. Map ----- +----------------------------------------------------+ | ?????????????# #?????????????????????????????????? | | ?????????????# #?????????????????????????????????? | | ?????????????# #?????????????????????????????????? | | ?????????????# #?????????????????????????????????? | | ?????????????# #?????????????????????????????????? | | ?????????????# #?????????????????????????????????? | | ?????????????# #?????????????????????????????????? | | ?????????????# #?????????????????????????????????? | | ?????????????# #?????????????????????????????????? | | ?????????###?# #??????#??????????????????????????? | | ????????? #?#=#?????? ??????????????????????????? | | ?????????# #?#*#??????*??????????????????????????? | | ?????????# #?#=#?????? ??????????????????????????? | | ?????????# ###+####??# #?????????????????????????? | | ?????????# # ! #??# #?????????????????????????? | | ?????????# # ! #??# #?????????????????????????? | | ?????????# # "" #??# #?????????????????????????? | | ?????????# # ! """#??# #?????????????????????????? | | ?????????# / S"#??# #?????????????????????????? | | ?????????# # #??# #?????????????????????????? | | ???????### ########??# #?????????????????????????? | | ??####?# !##""##### #?????????????????????????? | | ??# # g [= #?????????????????????????? | | ??# "" + urg= [! #?????????????????????????? | | ??# "Y # % [g[[ #######???????????????????? | | ???????# %# ![##### @ +???????????????????? | | ???????#########!#???#########???????????????????? | | ????????????##?###???????????????????????????????? | | ?????????????????????????????????????????????????? | | ?????????????????????????????????????????????????? | | ?????????????????????????????????????????????????? | | ?????????????????????????????????????????????????? | | ?????????????????????????????????????????????????? | | ?????????????????????????????????????????????????? | | ?????????????????????????????????????????????????? | | ?????????????????????????????????????????????????? | | ?????????????????????????????????????????????????? | | ?????????????????????????????????????????????????? | | ?????????????????????????????????????????????????? | | ?????????????????????????????????????????????????? | | ?????????????????????????????????????????????????? | | ?????????????????????????????????????????????????? | | ?????????????????????????????????????????????????? | | ?????????????????????????????????????????????????? | | ?????????????????????????????????????????????????? | | ?????????????????????????????????????????????????? | | ?????????????????????????????????????????????????? | | ?????????????????????????????????????????????????? | | ?????????????????????????????????????????????????? | | | +----------------------------------------------------+ Best States ------------- Heat Dissipation 31 Energy Generation 14 Energy Capacity 250 Matter Stores 300 Matter Capacity 300 Sight Range 22 Terrain Scan Density 10 Evasion (%) 50 Recoil Reduction 2 Item Schematics ----------------- None Robot Schematics ------------------ None Fabricated ------------ Nothing Alien Tech Used ----------------- None Achievements -------------- Please Form A Line Challenges ------------ None Game ------ Seed LaserThermalMagmablaster Manual? 0 Play Time 00:26:54 Cumulative 3.9 hours Start 2021.10.24 @ 15:02:01 End 2021.10.24 @ 15:29:19 Sessions 1 Manual Loads 0 Difficulty Rogue Special Mode None Game No. 5 Rogue 5 Adventurer 0 Explorer 0 Win Type - Total 0 Types 0/0/0/0/0/0/0/0/0 Lore% 3 Gallery% 6 Achievement% 5 Wizard Run 0 Options --------- ASCII 0 Keyboard 1 Movement Vi Keybinds 0 Fullscreen 1 Font 36/X11Bold Map View 76x50 Tactical HUD 1 Map Filters NONE Filters NONE Steam 1 RUN: d3f87865-4461-4b32-8f29-d3286a952a97